bitfinex-derivatives/quotes_BTCF0:USTF0_20250719
["timestamp","ask_amount","ask_price","bid_price","bid_amount"]
[1752943984675,0.91072625,118160.0,118150.0,0.3233423]
[1752943984676,1.27152625,118160.0,118150.0,0.3233423]
[1752943985677,0.91072625,118160.0,118150.0,0.3233423]
[1752943985877,1.27152625,118160.0,118150.0,0.3233423]
[1752943987778,0.91072625,118160.0,118150.0,0.3233423]
[1752943988779,1.27152625,118160.0,118150.0,0.3233423]
[1752943989782,0.91072625,118160.0,118150.0,0.3233423]
[1752943989982,0.91071805,118160.0,118150.0,0.3233423]
[1752943990177,1.27151805,118160.0,118150.0,0.3233423]
[1752943990877,0.91071805,118160.0,118150.0,0.3233423]
[1752943991075,1.27151805,118160.0,118150.0,0.3233423]
[1752943991779,0.32197805,118160.0,118150.0,0.53994716]
[1752943992082,0.87803805,118160.0,118150.0,0.53994716]
[1752943992285,0.87803805,118160.0,118150.0,0.3233423]
[1752943992582,0.87803805,118160.0,118150.0,0.53994716]
[1752943995089,0.87803805,118160.0,118150.0,0.90074716]
[1752943996487,0.87803805,118160.0,118150.0,0.53994716]
[1752943997488,0.87803805,118160.0,118150.0,0.3233423]
[1752943997791,0.87803805,118160.0,118150.0,0.53994716]
[1752944001588,0.90893805,118160.0,118150.0,0.53994716]
[1752944004786,0.90893805,118160.0,118150.0,0.3233423]
[1752944005083,0.90893805,118160.0,118150.0,0.53994716]
[1752944006594,0.90893805,118160.0,118150.0,0.90074716]
[1752944009996,0.90893805,118160.0,118150.0,0.6841423]
[1752944010294,0.90893805,118160.0,118150.0,0.90074716]
[1752944012700,0.96982867,118160.0,118150.0,0.90074716]
[1752944014101,1.33062867,118160.0,118150.0,0.3233423]
[1752944014897,1.49318292,118160.0,118150.0,0.48589655]
[1752944016406,0.90494292,118160.0,118150.0,0.48589655]
[1752944016605,1.49298292,118160.0,118150.0,0.48589655]
[1752944017006,1.54716784,118160.0,118150.0,0.3233423]
[1752944017410,1.18636784,118160.0,118150.0,0.3233423]
[1752944017606,1.54716784,118160.0,118150.0,0.3233423]
[1752944019711,1.18636784,118160.0,118150.0,0.3233423]
[1752944019904,1.54716784,118160.0,118150.0,0.3233423]
[1752944021711,1.18636784,118160.0,118150.0,0.3233423]
[1752944022014,1.54716784,118160.0,118150.0,0.3233423]
[1752944022514,1.54716784,118160.0,118150.0,0.2928823]
[1752944022707,1.48627722,118160.0,118150.0,0.2182323]
[1752944023612,1.26953805,118160.0,118150.0,0.2182323]
[1752944023812,1.48627722,118160.0,118150.0,0.2631023]
[1752944024010,1.48627722,118160.0,118150.0,0.2930323]
[1752944024307,1.26953805,118160.0,118150.0,0.2930323]
[1752944025214,1.26941805,118160.0,118150.0,0.2930323]
[1752944026114,1.26941805,118160.0,118150.0,0.2182323]
[1752944026712,1.26937805,118160.0,118150.0,0.2182323]
[1752944026912,1.48611722,118160.0,118150.0,0.2182323]
[1752944027413,0.89823722,118160.0,118150.0,0.2182323]
[1752944027613,1.48611722,118160.0,118150.0,0.2182323]
[1752944028713,1.12531722,118160.0,118150.0,0.2182323]
[1752944029310,1.48611722,118160.0,118150.0,0.2182323]
[1752944030316,0.89823722,118160.0,118150.0,0.2182323]
[1752944030616,1.48607722,118160.0,118150.0,0.2182323]
[1752944031717,1.12527722,118160.0,118150.0,0.2182323]
[1752944031918,1.48607722,118160.0,118150.0,0.2182323]
[1752944032513,1.48607722,118160.0,118150.0,0.04904]
[1752944032717,0.2243446,118150.0,118140.0,0.43767981]
[1752944032915,0.2243446,118150.0,118140.0,0.62144981]
[1752944032916,0.89287152,118150.0,118140.0,0.62144981]
[1752944033418,0.89287152,118150.0,118140.0,0.65218981]
[1752944034018,0.89287152,118150.0,118140.0,0.65318981]
[1752944034312,0.89287152,118150.0,118140.0,0.65518981]
[1752944035118,0.67613235,118150.0,118140.0,0.65518981]
[1752944035634,0.89287152,118150.0,118140.0,0.43761188]
[1752944036520,0.96020633,118150.0,118140.0,0.48211188]
[1752944036923,0.90606272,118150.0,118140.0,0.48211188]
[1752944037622,0.74346716,118150.0,118140.0,0.48211188]
[1752944037822,0.90606272,118150.0,118140.0,0.51285188]
[1752944039726,0.74346716,118150.0,118140.0,0.51285188]
[1752944039930,0.90606272,118150.0,118140.0,0.51285188]
[1752944040229,0.90606272,118150.0,118140.0,0.67544744]
[1752944040431,0.90606272,118150.0,118140.0,0.51285188]
[1752944040627,0.90606272,118150.0,118140.0,0.67544744]
[1752944041433,0.38266716,118150.0,118140.0,0.67544744]
[1752944041631,0.51562272,118150.0,118140.0,0.838043]
[1752944042129,0.94070716,118150.0,118140.0,0.838043]
[1752944042532,0.94070716,118150.0,118140.0,0.51285188]
[1752944042728,0.94070716,118150.0,118140.0,1.198843]
[1752944043431,0.18382256,118150.0,118140.0,1.198843]
[1752944043634,0.60410775,118150.0,118140.0,1.36143856]
[1752944043835,0.60410775,118150.0,118140.0,1.198843]
[1752944044736,0.60410775,118150.0,118140.0,0.8545868]
[1752944044935,0.60410775,118150.0,118140.0,1.21129773]
[1752944049439,0.60409846,118150.0,118140.0,1.21129773]
[1752944050241,0.67047739,118150.0,118140.0,1.21129773]
[1752944053544,0.08279739,118150.0,118140.0,1.21129773]
[1752944053738,0.67035739,118150.0,118140.0,1.21129773]
[1752944053939,0.60397846,118150.0,118140.0,1.21129773]
[1752944055043,0.00811209,118150.0,118140.0,1.50299773]
[1752944055243,0.58756,118160.0,118150.0,0.2291847]
[1752944055435,0.58756,118160.0,118150.0,0.89829563]
[1752944056538,0.61918,118160.0,118150.0,0.89829563]
[1752944056738,0.68762,118160.0,118150.0,0.89829563]
[1752944058046,0.8568104,118160.0,118150.0,0.89829563]
[1752944059545,0.8568104,118160.0,118150.0,0.6815847]
[1752944059747,0.8568104,118160.0,118150.0,0.89829563]
[1752944061334,0.8568104,118160.0,118150.0,0.6815847]
[1752944061539,0.8853204,118160.0,118150.0,0.89829563]
[1752944062246,0.8853204,118160.0,118150.0,0.89839309]
[1752944062439,1.2461204,118160.0,118150.0,0.53759309]
[1752944062643,0.8853204,118160.0,118150.0,0.53759309]
[1752944067147,0.8853204,118160.0,118150.0,0.89839309]
[1752944068646,0.8853204,118160.0,118150.0,0.68168216]
[1752944068848,0.8853204,118160.0,118150.0,0.89839309]
[1752944071348,0.68762,118160.0,118150.0,0.89839309]
[1752944071850,0.8568104,118160.0,118150.0,0.89839309]
[1752944073055,0.8568104,118160.0,118150.0,0.84420649]
[1752944078259,0.2692504,118160.0,118150.0,0.84420649]
[1752944078451,0.8564504,118160.0,118150.0,0.84420649]
[1752944078750,0.8849604,118160.0,118150.0,0.84420649]
[1752944081756,0.8849604,118160.0,118150.0,0.68168216]
[1752944081958,0.8849604,118160.0,118150.0,0.84420649]
[1752944085158,0.8849604,118160.0,118150.0,0.68168216]
[1752944085460,0.8849604,118160.0,118150.0,0.84420649]
[1752944089060,0.8849604,118160.0,118150.0,0.48340649]
[1752944089277,0.8849604,118160.0,118150.0,0.84420649]
[1752944090269,0.8849604,118160.0,118150.0,0.68168216]
[1752944090461,0.8849604,118160.0,118150.0,0.84420649]
[1752944092765,0.8849604,118160.0,118150.0,0.87457453]
[1752944092958,0.8849604,118160.0,118150.0,0.84420649]
[1752944094164,0.8849604,118160.0,118150.0,0.87457453]
[1752944097464,0.8849604,118160.0,118150.0,0.7120502]
[1752944097766,0.8849604,118160.0,118150.0,0.87457453]
[1752944102465,0.8849604,118160.0,118150.0,0.84420649]
[1752944103268,0.2977604,118160.0,118150.0,0.84420649]
[1752944104465,0.8846004,118160.0,118150.0,0.84420649]
[1752944105170,0.8560904,118160.0,118150.0,0.84420649]
[1752944105371,0.2692504,118160.0,118150.0,0.84420649]
[1752944105571,0.8560104,118160.0,118150.0,0.84420649]
[1752944105970,0.68682,118160.0,118150.0,1.00673082]
[1752944107863,0.10006,118160.0,118150.0,1.00673082]
[1752944108069,0.68682,118160.0,118150.0,1.00673082]
[1752944109369,0.10006,118160.0,118150.0,1.00673082]
[1752944110475,0.68674,118160.0,118150.0,1.00673082]
[1752944112375,0.10006,118160.0,118150.0,1.00673082]
[1752944113774,0.6867,118160.0,118150.0,1.00673082]
[1752944122483,0.6867,118160.0,118150.0,0.68168216]
[1752944122680,0.6867,118160.0,118150.0,1.00673082]
[1752944127590,0.8558901,118160.0,118150.0,1.00673082]
[1752944128385,0.8558901,118160.0,118150.0,0.84420649]
[1752944128991,0.8558901,118160.0,118150.0,0.68168216]
[1752944129192,0.8558901,118160.0,118150.0,0.84420649]
[1752944130388,0.8558901,118160.0,118150.0,0.48340649]
[1752944130692,0.8819901,118160.0,118150.0,1.00673082]
[1752944130993,0.8819901,118160.0,118150.0,0.84420649]
[1752944138305,0.8819901,118160.0,118150.0,0.81346649]
[1752944138496,0.8819901,118160.0,118150.0,0.84244649]
[1752944139203,0.7128,118160.0,118150.0,0.84244649]
[1752944139604,0.7128,118160.0,118150.0,1.00497082]
[1752944139605,0.66274,118160.0,118150.0,1.00497082]
[1752944139804,0.61782,118160.0,118150.0,1.00497082]
[1752944139999,0.66135,118160.0,118150.0,1.00497082]
[1752944140200,0.68276,118160.0,118150.0,1.00497082]
[1752944141797,0.68276,118160.0,118150.0,1.00487336]
[1752944143002,0.09487,118170.0,118160.0,0.2182801]
[1752944143206,0.8501258,118170.0,118160.0,0.99908876]
[1752944144008,0.8511258,118170.0,118160.0,0.99908876]
[1752944144508,0.8772258,118170.0,118160.0,0.99908876]
[1752944146911,0.8772258,118170.0,118160.0,0.63828876]
[1752944147601,0.8772258,118170.0,118160.0,0.99908876]
[1752944148111,0.2911458,118170.0,118160.0,0.63828876]
[1752944148311,0.8771458,118170.0,118160.0,0.99908876]
[1752944148610,0.8771458,118170.0,118160.0,0.63828876]
[1752944149110,0.8761458,118170.0,118160.0,0.63828876]
[1752944150710,0.8761458,118170.0,118160.0,0.99908876]
[1752944150910,0.8761458,118170.0,118160.0,0.63828876]
[1752944151309,0.8761458,118170.0,118160.0,0.99908876]
[1752944152807,0.93703642,118170.0,118160.0,0.99908876]
[1752944155014,0.93703642,118170.0,118160.0,0.63828876]
[1752944155313,0.93703642,118170.0,118160.0,0.99908876]
[1752944160714,0.8761458,118170.0,118160.0,0.99908876]
[1752944165423,0.8500458,118170.0,118160.0,0.99908876]
[1752944166526,0.8500458,118170.0,118160.0,0.6740401]
[1752944166727,0.8500458,118170.0,118160.0,0.99908876]
[1752944168227,0.8500458,118170.0,118160.0,0.63828876]
[1752944169127,0.8500458,118170.0,118160.0,0.99908876]
[1752944174530,0.68087,118170.0,118160.0,0.99908876]
[1752944174731,0.8500458,118170.0,118160.0,0.99908876]
[1752944175925,0.8745858,118170.0,118160.0,0.99908876]
[1752944176430,0.8500458,118170.0,118160.0,0.99908876]
[1752944176831,0.8500458,118170.0,118160.0,1.01780752]
[1752944177531,0.8500458,118170.0,118160.0,0.65700752]
[1752944178032,0.8500458,118170.0,118160.0,1.01780752]
[1752944178732,0.8500458,118170.0,118160.0,0.65700752]
[1752944179431,0.68087,118170.0,118160.0,1.01780752]
[1752944181133,0.8500458,118170.0,118160.0,1.01780752]
[1752944182832,0.8500458,118170.0,118160.0,0.69275886]
[1752944183033,0.8738158,118170.0,118160.0,1.01780752]
[1752944183233,0.8730958,118170.0,118160.0,1.01780752]
[1752944191538,0.8493258,118170.0,118160.0,1.01780752]
[1752944192134,0.19249439,118180.0,118170.0,0.1691758]
[1752944192328,0.94677759,118180.0,118170.0,0.83356013]
[1752944192726,0.96175504,118180.0,118170.0,0.83356013]
[1752944193132,0.75130094,118180.0,118170.0,0.99608446]
[1752944193438,0.92146244,118180.0,118170.0,0.83356013]
[1752944193736,0.33634244,118180.0,118170.0,0.83356013]
[1752944193936,0.92142244,118180.0,118170.0,0.83356013]
[1752944195237,0.92142244,118180.0,118170.0,0.6710358]
[1752944195437,0.8455015,118180.0,118170.0,0.83356013]
[1752944196036,0.8455015,118180.0,118170.0,0.6710358]
[1752944196327,0.8455015,118180.0,118170.0,0.83356013]
[1752944196839,0.92142244,118180.0,118170.0,0.83356013]
[1752944197835,0.94504244,118180.0,118170.0,0.6710358]
[1752944198032,1.10756677,118180.0,118170.0,0.83356013]
[1752944201240,1.03164583,118180.0,118170.0,0.83356013]
[1752944201742,1.03164583,118180.0,118170.0,0.50186]
[1752944201945,1.19417016,118180.0,118170.0,0.2128058]
[1752944202141,1.2700911,118180.0,118170.0,0.1691758]
[1752944202342,0.94504244,118180.0,118170.0,0.1691758]
[1752944202545,1.10756677,118180.0,118170.0,0.2128058]
[1752944202741,1.46836677,118180.0,118170.0,0.2128058]
[1752944202942,1.45335491,118180.0,118170.0,0.37533013]
[1752944204244,1.45335491,118180.0,118170.0,0.41810013]
[1752944204444,1.03164583,118180.0,118170.0,0.41810013]
[1752944204644,1.03164583,118180.0,118170.0,0.44524013]
[1752944204840,1.39244583,118180.0,118170.0,0.44524013]
[1752944205052,1.45335491,118180.0,118170.0,0.44524013]
[1752944205655,1.03164583,118180.0,118170.0,0.44524013]
[1752944210557,0.8691215,118180.0,118170.0,0.44524013]
[1752944210857,1.03164583,118180.0,118170.0,0.44524013]
[1752944211058,0.8691215,118180.0,118170.0,0.44524013]
[1752944211258,1.03164583,118180.0,118170.0,0.44524013]
[1752944211858,1.03164583,118180.0,118170.0,0.2827158]
[1752944212059,1.03164583,118180.0,118170.0,0.47265013]
[1752944213760,0.44656583,118180.0,118170.0,0.47265013]
[1752944213962,1.03144583,118180.0,118170.0,0.47265013]
[1752944214560,1.03144583,118180.0,118170.0,0.3101258]
[1752944214760,1.03144583,118180.0,118170.0,0.47265013]
[1752944215661,1.45315491,118180.0,118170.0,0.3101258]
[1752944215858,1.45315491,118180.0,118170.0,0.47265013]
[1752944216058,1.45315491,118180.0,118170.0,0.30347433]
[1752944216261,1.45315491,118180.0,118170.0,0.47265003]
[1752944217563,1.45315491,118180.0,118170.0,0.3101257]
[1752944217759,1.45315491,118180.0,118170.0,0.47265003]
[1752944218563,1.45315491,118180.0,118170.0,0.40247003]
[1752944219564,1.09235491,118180.0,118170.0,0.44484003]
[1752944220266,1.45315491,118180.0,118170.0,0.44484003]
[1752944220764,1.45315491,118180.0,118170.0,0.40247003]
[1752944220965,1.45315491,118180.0,118170.0,0.37533003]
[1752944221463,0.2832401,118160.0,118150.0,9.746e-05]
[1752944221673,0.1692187,118140.0,118130.0,0.64023987]
[1752944221873,0.1692187,118140.0,118130.0,0.03036804]
[1752944221874,1.91475736,118140.0,118130.0,0.03036804]
[1752944222062,0.169233,118130.0,118120.0,0.28935457]
[1752944222369,1.39140733,118130.0,118120.0,0.46062353]
[1752944222563,1.45894712,118130.0,118120.0,0.2980992]
[1752944222965,1.29642279,118130.0,118120.0,0.2980992]
[1752944224164,0.71162279,118130.0,118120.0,0.2980992]
[1752944224368,0.9522283,118130.0,118120.0,0.7270192]
[1752944224566,0.9522283,118130.0,118120.0,0.58308637]
[1752944225065,0.9522283,118130.0,118120.0,0.58408637]
[1752944226271,0.9522283,118130.0,118120.0,0.58608637]
[1752944226772,1.3130283,118130.0,118120.0,0.284597]
[1752944226972,1.3130283,118130.0,118120.0,0.242227]
[1752944228174,1.3130283,118130.0,118120.0,0.284597]
[1752944230676,0.9522283,118130.0,118120.0,0.284597]
[1752944230873,0.9522283,118130.0,118120.0,0.50146417]
[1752944231176,0.9522283,118130.0,118120.0,0.52887417]
[1752944233173,1.3130283,118130.0,118120.0,0.52887417]
[1752944233685,0.9522283,118130.0,118120.0,0.52887417]
[1752944234274,1.3130283,118130.0,118120.0,0.52887417]
[1752944235485,0.9522283,118130.0,118120.0,0.52887417]
[1752944236082,1.3130283,118130.0,118120.0,0.52887417]
[1752944237184,1.3130283,118130.0,118120.0,0.312007]
[1752944239287,0.9522283,118130.0,118120.0,0.312007]
[1752944239490,1.3130283,118130.0,118120.0,0.312007]
[1752944239891,0.9522283,118130.0,118120.0,0.312007]
[1752944240690,0.9522283,118130.0,118120.0,0.52887417]
[1752944243008,1.1148607,118130.0,118120.0,0.4746394]
[1752944245798,1.1148607,118130.0,118120.0,0.6372718]
[1752944246597,1.4756607,118130.0,118120.0,0.6372718]
[1752944248097,1.53656978,118130.0,118120.0,0.6372718]
[1752944249303,1.17576978,118130.0,118120.0,0.6372718]
[1752944249900,1.17576978,118130.0,118120.0,0.4746394]
[1752944253006,1.1148607,118130.0,118120.0,0.4746394]
[1752944253711,1.1148607,118130.0,118120.0,0.6372718]
[1752944254811,1.1148607,118130.0,118120.0,0.4746394]
[1752944256317,1.4756607,118130.0,118120.0,0.4746495]
[1752944257310,1.47570482,118130.0,118120.0,0.4746495]
[1752944259010,1.11490482,118130.0,118120.0,0.4746495]
[1752944259212,1.47570482,118130.0,118120.0,0.4746495]
[1752944262413,1.47570482,118130.0,118120.0,0.3120171]
[1752944262709,1.11490482,118130.0,118120.0,0.4746495]
[1752944262913,1.47570482,118130.0,118120.0,0.4746495]
[1752944270020,1.47570482,118130.0,118120.0,0.3120171]
[1752944270217,1.47570482,118130.0,118120.0,0.4746495]
[1752944272321,1.47570482,118130.0,118120.0,0.3120171]
[1752944272619,1.47570482,118130.0,118120.0,0.4746495]
[1752944273023,1.31307242,118130.0,118120.0,0.4746495]
[1752944273228,1.31283242,118130.0,118120.0,0.4746495]
[1752944273521,1.31283242,118130.0,118120.0,0.6372819]
[1752944275524,0.95203242,118130.0,118120.0,0.6372819]
[1752944275725,0.92935242,118130.0,118120.0,0.6372819]
[1752944276923,0.94978242,118130.0,118120.0,0.6372819]
[1752944278021,1.27504722,118130.0,118120.0,0.003]
[1752944278229,1.63584722,118130.0,118120.0,0.003]
[1752944278526,1.47321482,118130.0,118120.0,0.003]
[1752944281430,1.63584722,118130.0,118120.0,0.003]
[1752944284728,1.71176816,118130.0,118120.0,0.003]
[1752944287028,2.07256816,118130.0,118120.0,0.003]
[1752944287633,1.99664722,118130.0,118120.0,0.003]
[1752944287833,2.07256816,118130.0,118120.0,0.003]
[1752944288430,1.99664722,118130.0,118120.0,0.003]
[1752944289737,2.07256816,118130.0,118120.0,0.003]
[1752944292935,1.89481613,118130.0,118120.0,0.10854]
[1752944293448,1.89481613,118130.0,118120.0,0.04364]
[1752944294631,1.53401613,118130.0,118120.0,0.04364]
[1752944294836,1.47309482,118130.0,118120.0,0.04364]
[1752944295333,0.88861482,118130.0,118120.0,0.04364]
[1752944295540,1.47305482,118130.0,118120.0,0.04364]
[1752944296844,1.47305482,118130.0,118120.0,0.2128871]
[1752944297337,0.88861482,118130.0,118120.0,0.2128871]
[1752944297543,1.47305482,118130.0,118120.0,0.2128871]
[1752944298046,1.53397613,118130.0,118120.0,0.2128871]
[1752944300341,0.94953613,118130.0,118120.0,0.2128871]
[1752944300542,1.53389613,118130.0,118120.0,0.2128871]
[1752944303644,1.53389613,118130.0,118120.0,0.21300896]
[1752944304747,0.94953613,118130.0,118120.0,0.21300896]
[1752944305040,1.53389613,118130.0,118120.0,0.21300896]
[1752944305544,1.53389613,118130.0,118120.0,0.19910997]
[1752944305745,1.53389613,118130.0,118120.0,0.02986287]
[1752944306444,1.53389613,118130.0,118120.0,0.01143186]
[1752944307446,0.94953613,118130.0,118120.0,0.01143186]
[1752944307646,1.53381613,118130.0,118120.0,0.01143186]
[1752944309347,1.63707722,118130.0,118120.0,0.00012186]
[1752944310650,0.2856571,118120.0,118110.0,0.03072]
[1752944310943,0.98829153,118120.0,118110.0,0.03072]
[1752944311151,0.2841214,118110.0,118100.0,0.3867973]
[1752944311345,0.2841501,118090.0,118080.0,0.40169576]
[1752944311655,0.62732963,118090.0,118080.0,0.6813796]
[1752944311950,0.62732963,118090.0,118080.0,0.7120996]
[1752944312248,0.79661973,118090.0,118080.0,0.7120996]
[1752944313145,0.79661973,118090.0,118080.0,0.7160996]
[1752944313349,0.83365973,118090.0,118080.0,0.7190996]
[1752944313546,0.85218973,118090.0,118080.0,0.7190996]
[1752944314952,0.85218973,118090.0,118080.0,0.61079767]
[1752944316051,0.85218973,118090.0,118080.0,0.62730739]
[1752944316450,0.09869963,118090.0,118080.0,0.98810739]
[1752944316650,0.64585963,118090.0,118080.0,0.98810739]
[1752944317952,0.01656963,118090.0,118080.0,0.98810739]
[1752944318250,0.60072963,118090.0,118080.0,0.98810739]
[1752944320455,0.58824777,118090.0,118080.0,1.37443826]
[1752944320647,0.58824777,118090.0,118080.0,1.91613826]
[1752944320648,0.57592777,118090.0,118080.0,1.91613826]
[1752944321048,0.2692821,118110.0,118100.0,0.3021658]
[1752944321249,0.8534021,118110.0,118100.0,0.87992867]
[1752944321445,0.2692821,118110.0,118100.0,0.87992867]
[1752944321744,0.8534021,118110.0,118100.0,0.87992867]
[1752944322256,0.8534021,118110.0,118100.0,0.88092867]
[1752944322558,0.8534021,118110.0,118100.0,0.88192867]
[1752944322850,0.8534021,118110.0,118100.0,0.52112867]
[1752944323060,0.8534021,118110.0,118100.0,0.88192867]
[1752944323358,0.8534021,118110.0,118100.0,0.52112867]
[1752944323661,0.8534021,118110.0,118100.0,0.88192867]
[1752944323847,0.8534021,118110.0,118100.0,0.52112867]
[1752944324052,0.8534021,118110.0,118100.0,0.88192867]
[1752944325360,0.68414,118110.0,118100.0,0.88192867]
[1752944325657,0.6471,118110.0,118100.0,0.88192867]
[1752944325854,0.68414,118110.0,118100.0,0.88192867]
[1752944326052,0.8534014,118110.0,118100.0,0.88192867]
[1752944326865,0.68414,118110.0,118100.0,0.88192867]
[1752944328062,0.8534014,118110.0,118100.0,0.88192867]
[1752944328962,0.8534014,118110.0,118100.0,0.52112867]
[1752944329169,0.68414,118110.0,118100.0,0.88192867]
[1752944329469,0.8534014,118110.0,118100.0,0.88192867]
[1752944330060,0.2692814,118110.0,118100.0,0.88192867]
[1752944330260,0.8532414,118110.0,118100.0,0.88192867]
[1752944331164,0.68398,118110.0,118100.0,0.88192867]
[1752944331965,0.8532415,118110.0,118100.0,0.88192867]
[1752944332561,0.86969647,118110.0,118100.0,0.88192867]
[1752944332770,0.70043497,118110.0,118100.0,0.88192867]
[1752944332956,0.02210497,118110.0,118100.0,0.88192867]
[1752944333267,0.60037497,118110.0,118100.0,0.88192867]
[1752944333665,0.76963657,118110.0,118100.0,0.88192867]
[1752944335364,0.78098657,118110.0,118100.0,0.88192867]
[1752944335765,0.61172497,118110.0,118100.0,0.88192867]
[1752944336068,0.60037497,118110.0,118100.0,0.88192867]
[1752944339960,0.61172497,118110.0,118100.0,0.88192867]
[1752944341068,0.61172497,118110.0,118100.0,0.99028834]
[1752944341569,0.70379497,118110.0,118100.0,0.99028834]
[1752944341772,1.42414784,118110.0,118100.0,0.46682707]
[1752944341964,1.48513163,118110.0,118100.0,0.44922707]
[1752944342267,1.48513163,118110.0,118100.0,0.2865658]
[1752944342463,1.48513163,118110.0,118100.0,0.2921358]
[1752944342870,1.42414784,118110.0,118100.0,0.2921358]
[1752944343072,1.42414784,118110.0,118100.0,0.45479707]
[1752944344470,1.42414784,118110.0,118100.0,0.2921358]
[1752944344663,1.42414784,118110.0,118100.0,0.45479707]
[1752944344969,1.47842808,118110.0,118100.0,0.2921358]
[1752944350170,1.26148657,118110.0,118100.0,0.2921358]
[1752944350561,1.47842808,118110.0,118100.0,0.2921358]
[1752944351173,1.26148657,118110.0,118100.0,0.2921358]
[1752944353471,1.47842808,118110.0,118100.0,0.2921358]
[1752944357192,1.47842808,118110.0,118100.0,0.2019958]
[1752944357969,1.47842808,118110.0,118100.0,0.2414058]
[1752944361480,1.47842808,118110.0,118100.0,0.2607758]
[1752944363980,1.47842808,118110.0,118100.0,0.2597758]
[1752944364392,1.47842808,118110.0,118100.0,0.2203658]
[1752944364680,1.47842808,118110.0,118100.0,0.1692758]
[1752944365081,1.58694509,118110.0,118100.0,0.1692758]
[1752944365276,1.42421583,118110.0,118100.0,0.1692758]
[1752944366382,1.42521583,118110.0,118100.0,0.1692758]
[1752944366582,1.42621583,118110.0,118100.0,0.1692758]
[1752944367684,1.42621583,118110.0,118100.0,0.1965158]
[1752944372794,1.48719962,118110.0,118100.0,0.1965158]
[1752944373995,1.32447036,118110.0,118100.0,0.1965158]
[1752944374196,1.48719962,118110.0,118100.0,0.1965158]
[1752944374397,1.48719962,118110.0,118100.0,0.35924506]
[1752944374791,0.2973203,118090.0,118080.0,0.38462742]
[1752944374995,1.05978453,118090.0,118080.0,0.60082268]
[1752944375592,1.05978453,118090.0,118080.0,0.43809342]
[1752944375788,1.05978453,118090.0,118080.0,0.60082268]
[1752944376696,1.05978453,118090.0,118080.0,0.60282268]
[1752944376987,1.06000189,118090.0,118080.0,0.60282268]
[1752944380196,1.58353115,118090.0,118080.0,0.002]
[1752944380501,0.2973346,118080.0,118070.0,0.57320966]
[1752944380699,0.47673619,118080.0,118070.0,0.57320966]
[1752944380899,0.47673619,118080.0,118070.0,0.59788396]
[1752944382601,0.47673619,118080.0,118070.0,0.59988396]
[1752944382802,0.47673619,118080.0,118070.0,0.60188396]
[1752944384602,0.83753619,118080.0,118070.0,0.51722586]
[1752944384994,0.83753619,118080.0,118070.0,0.38136826]
[1752944385705,0.83753619,118080.0,118070.0,0.44457826]
[1752944385920,0.83753619,118080.0,118070.0,0.45023826]
[1752944386303,0.83753619,118080.0,118070.0,0.46137826]
[1752944386601,0.83753619,118080.0,118070.0,0.47450545]
[1752944387004,0.47673619,118080.0,118070.0,0.47450545]
[1752944387803,0.47673619,118080.0,118070.0,0.46137826]
[1752944390608,0.47673619,118080.0,118070.0,0.47508984]
[1752944391803,0.31400693,118080.0,118070.0,0.47508984]
[1752944392006,0.05826233,118080.0,118070.0,0.47508984]
[1752944392206,0.22756693,118080.0,118070.0,0.47508984]
[1752944392610,0.24573693,118080.0,118070.0,0.47508984]
[1752944392805,0.28444693,118080.0,118070.0,0.47508984]
[1752944393910,0.11514233,118080.0,118070.0,0.47508984]
[1752944394811,0.01667233,118080.0,118070.0,0.9986191]
[1752944395012,0.59971233,118080.0,118070.0,0.9986191]
[1752944396014,0.59967233,118080.0,118070.0,0.9986191]
[1752944396921,0.59967233,118080.0,118070.0,0.89011685]
[1752944397424,0.01667233,118080.0,118070.0,0.89011685]
[1752944397621,0.59963233,118080.0,118070.0,0.89011685]
[1752944397818,0.01667233,118080.0,118070.0,1.47307685]
[1752944398121,0.01667233,118080.0,118070.0,1.76477685]
[1752944399616,0.58296,118090.0,118080.0,0.2872647]
[1752944399924,0.01648334,118090.0,118080.0,0.87622097]
[1752944400419,0.01648334,118090.0,118080.0,0.73237724]
[1752944400628,0.02727403,118100.0,118090.0,0.2872503]
[1752944400821,0.01648402,118100.0,118090.0,0.51540657]
[1752944403123,0.01748402,118100.0,118090.0,0.51540657]
[1752944403524,0.05791402,118100.0,118090.0,0.51540657]
[1752944404123,0.22718972,118100.0,118090.0,0.5901503]
[1752944404323,0.22718972,118100.0,118090.0,0.80710657]
[1752944404724,0.22718972,118100.0,118090.0,0.5901503]
[1752944404924,0.26589972,118100.0,118090.0,0.80710657]
[1752944405721,0.09662402,118100.0,118090.0,0.80710657]
[1752944406421,0.26589972,118100.0,118090.0,0.80710657]
[1752944406625,0.2675857,118100.0,118090.0,0.2984503]
[1752944406924,0.51225197,118100.0,118090.0,0.16929]
[1752944407224,0.87305197,118100.0,118090.0,0.19879]
[1752944408126,0.6560957,118100.0,118090.0,0.19879]
[1752944408321,0.87305197,118100.0,118090.0,0.0295]
[1752944408625,0.87305197,118100.0,118090.0,0.16929]
[1752944408826,0.2171,118090.0,118080.0,0.4254246]
[1752944409026,1.23791,118090.0,118080.0,0.4254246]
[1752944410026,1.23791,118090.0,118080.0,0.4264246]
[1752944410227,1.23791,118090.0,118080.0,0.4274246]
[1752944411717,1.23791,118090.0,118080.0,0.64438087]
[1752944413928,0.87711,118090.0,118080.0,0.64438087]
[1752944414330,0.68003,118090.0,118080.0,0.64438087]
[1752944414630,0.8493196,118090.0,118080.0,0.64438087]
[1752944414827,0.8493196,118090.0,118080.0,1.00518087]
[1752944415129,0.8493196,118090.0,118080.0,0.64438087]
[1752944415327,0.8493196,118090.0,118080.0,1.00518087]
[1752944415731,0.8493196,118090.0,118080.0,0.7882246]
[1752944415930,0.8493196,118090.0,118080.0,1.00518087]
[1752944416231,0.68003,118090.0,118080.0,1.00518087]
[1752944416529,0.8493196,118090.0,118080.0,1.00518087]
[1752944417431,0.8770296,118090.0,118080.0,1.00518087]
[1752944418833,0.8770296,118090.0,118080.0,0.64438087]
[1752944419331,0.8770296,118090.0,118080.0,1.00518087]
[1752944420629,0.8770296,118090.0,118080.0,0.64438087]
[1752944420931,1.2378296,118090.0,118080.0,0.64438087]
[1752944421133,0.8770296,118090.0,118080.0,0.64438087]
[1752944421428,0.8770296,118090.0,118080.0,0.55973207]
[1752944421727,1.2378296,118090.0,118080.0,0.3315758]
[1752944424037,1.29878233,118090.0,118080.0,0.3315758]
[1752944424336,0.93798233,118090.0,118080.0,0.3315758]
[1752944424533,0.8770296,118090.0,118080.0,0.3315758]
[1752944425437,0.93798233,118090.0,118080.0,0.3315758]
[1752944426133,1.29878233,118090.0,118080.0,0.3315758]
[1752944429553,0.93798233,118090.0,118080.0,0.3315758]
[1752944430640,1.29878233,118090.0,118080.0,0.3315758]
[1752944432446,1.5157386,118090.0,118080.0,0.0315]
[1752944432647,1.5157386,118090.0,118080.0,0.002]
[1752944432844,1.53214804,118090.0,118080.0,0.002]
[1752944433146,1.47119531,118090.0,118080.0,0.002]
[1752944433947,1.48435674,118090.0,118080.0,0.002]
[1752944434749,1.47119531,118090.0,118080.0,0.1713039]
[1752944436146,1.47119531,118090.0,118080.0,0.002]
[1752944438953,1.47119531,118090.0,118080.0,0.1713039]